lending/lending_fUSD_20250429
["ID","MTS","AMOUNT","RATE_DAILY","PERIOD"]
[359324930,1745922645179,-470.0,0.0002774,2]
[359324932,1745922645189,-470.0,0.0002774,2]
[359324934,1745922645198,-470.0,0.0002774,2]
[359324936,1745922645210,-470.0,0.0002774,2]
[359324938,1745922645219,-470.0,0.0002774,2]
[359324940,1745922645229,-470.0,0.0002774,2]
[359324942,1745922645240,-470.0,0.0002774,2]
[359324944,1745922645249,-504.33782813,0.0002774,2]
[359324946,1745922645258,-603.00903675,0.0002774,2]
[359324948,1745922645268,-470.0,0.0002774,2]
[359324949,1745922645277,-470.0,0.0002774,2]
[359324951,1745922645286,-470.0,0.0002774,2]
[359324953,1745922645295,-330.57855105,0.0002774,2]
[359324955,1745922645304,-470.0,0.0002774,2]
[359324957,1745922645314,-577.02,0.0002774,2]
[359324959,1745922645324,-470.0,0.0002774,2]
[359324961,1745922645334,-598.92,0.0002774,2]
[359324963,1745922645344,-470.0,0.0002774,2]
[359324965,1745922645353,-470.0,0.0002774,2]
[359324967,1745922645363,-581.0,0.0002774,2]
[359324969,1745922645372,-470.0,0.0002774,2]
[359324971,1745922645382,-470.0,0.0002774,2]
[359324973,1745922645392,-470.0,0.0002774,2]
[359324975,1745922645403,-470.0,0.0002774,2]
[359324977,1745922645413,-470.0,0.0002774,2]
[359324978,1745922645422,-470.0,0.0002774,2]
[359324980,1745922645432,-470.0,0.0002774,2]
[359324982,1745922645443,-583.24,0.0002774,2]
[359324984,1745922645452,-689.49918464,0.0002774,2]
[359324985,1745922645462,-470.0,0.0002774,2]
[359324987,1745922645471,-500.78381634,0.0002774,2]
[359324989,1745922645482,-470.0,0.0002774,2]
[359324991,1745922645492,-470.0,0.0002774,2]
[359324993,1745922645501,-470.0,0.0002774,2]
[359324995,1745922645511,-470.0,0.0002774,2]
[359324997,1745922645520,-470.0,0.0002774,2]
[359324999,1745922645529,-470.0,0.0002774,2]
[359325000,1745922645539,-470.0,0.0002774,2]
[359325002,1745922645548,-470.0,0.0002774,2]
[359325004,1745922645558,-470.0,0.0002774,2]
[359325006,1745922645567,-470.0,0.0002774,2]
[359325008,1745922645577,-470.0,0.0002774,2]
[359325010,1745922645586,-470.0,0.0002774,2]
[359325012,1745922645596,-470.0,0.0002774,2]
[359325014,1745922645606,-470.0,0.0002774,2]
[359325016,1745922645615,-470.0,0.0002774,2]
[359325018,1745922645624,-470.0,0.0002774,2]
[359325020,1745922645633,-470.0,0.0002774,2]
[359325022,1745922645643,-470.0,0.0002774,2]
[359325024,1745922645652,-470.0,0.0002774,2]
[359325025,1745922645662,-505.68321696,0.0002774,2]
[359325027,1745922645671,-404.24354656,0.0002774,2]
[359325029,1745922645680,-470.0,0.0002774,2]
[359325031,1745922645690,-470.0,0.0002774,2]
[359325033,1745922645699,-470.0,0.0002774,2]
[359325035,1745922645709,-470.0,0.0002774,2]
[359325037,1745922645717,-470.0,0.0002774,2]
[359325039,1745922645727,-470.0,0.0002774,2]
[359325041,1745922645737,-470.0,0.0002774,2]
[359325043,1745922645746,-470.0,0.0002774,2]
[359325045,1745922645755,-470.0,0.0002774,2]
[359325047,1745922645765,-470.0,0.0002774,2]
[359325048,1745922645775,-495.27,0.0002774,2]
[359325050,1745922645784,-470.0,0.0002774,2]
[359325052,1745922645793,-470.0,0.0002774,2]
[359325054,1745922645803,-470.0,0.0002774,2]
[359325056,1745922645813,-470.0,0.0002774,2]
[359325058,1745922645824,-470.0,0.0002774,2]
[359325060,1745922645834,-470.0,0.0002774,2]
[359325062,1745922645843,-470.0,0.0002774,2]
[359325080,1745922646020,-470.0,0.0002774,2]
[359325082,1745922646030,-470.0,0.0002774,2]
[359325084,1745922646039,-470.0,0.0002774,2]
[359325086,1745922646048,-470.0,0.0002774,2]
[359325088,1745922646057,-470.0,0.0002774,2]
[359325090,1745922646067,-538.07859182,0.0002774,2]
[359325092,1745922646076,-470.0,0.0002774,2]
[359325094,1745922646085,-470.0,0.0002774,2]
[359325096,1745922646095,-470.0,0.0002774,2]
[359325098,1745922646104,-396.40512722,0.0002774,2]
[359325100,1745922646114,-470.0,0.0002774,2]
[359325102,1745922646123,-470.0,0.0002774,2]
[359325104,1745922646132,-470.0,0.0002774,2]
[359325105,1745922646142,-470.0,0.0002774,2]
[359325107,1745922646152,-470.0,0.0002774,2]
[359325109,1745922646165,-1865.37,0.0002774,2]
[359325111,1745922646175,-470.0,0.0002774,2]
[359325113,1745922646184,-540.44,0.0002774,2]
[359325115,1745922646194,-470.0,0.0002774,2]
[359325117,1745922646205,-470.0,0.0002774,2]
[359325119,1745922646214,-470.0,0.0002774,2]
[359325121,1745922646223,-470.0,0.0002774,2]
[359325123,1745922646233,-470.0,0.0002774,2]
[359325125,1745922646242,-470.0,0.0002774,2]
[359325127,1745922646251,-470.0,0.0002774,2]
[359325129,1745922646260,-470.0,0.0002774,2]
[359325131,1745922646270,-405.20056399,0.0002774,2]
[359325133,1745922646279,-470.0,0.0002774,2]
[359325135,1745922646288,-470.0,0.0002774,2]
[359325137,1745922646297,-470.0,0.0002774,2]
[359325139,1745922646306,-470.0,0.0002774,2]
[359325140,1745922646316,-470.0,0.0002774,2]
[359325142,1745922646327,-470.0,0.0002774,2]
[359325144,1745922646336,-470.0,0.0002774,2]
[359325146,1745922646345,-470.0,0.0002774,2]
[359325148,1745922646355,-486.28,0.0002774,2]
[359325150,1745922646365,-470.0,0.0002774,2]
[359325152,1745922646374,-470.0,0.0002774,2]
[359325154,1745922646383,-470.0,0.0002774,2]
[359325156,1745922646393,-470.0,0.0002774,2]
[359325158,1745922646403,-470.0,0.0002774,2]
[359325160,1745922646412,-470.0,0.0002774,2]
[359325162,1745922646422,-507.92578813,0.0002774,2]
[359325164,1745922646431,-492.55,0.0002774,2]
[359325166,1745922646441,-153.988947,0.0002774,7]
[359325168,1745922646450,-364.12742217,0.0002774,2]
[359325169,1745922646461,-470.0,0.0002774,2]
[359325171,1745922646470,-470.0,0.0002774,2]
[359325173,1745922646479,-470.0,0.0002774,2]
[359325174,1745922646492,-470.0,0.0002774,2]
[359325175,1745922646501,-577.98,0.0002774,2]
[359325176,1745922646511,-470.0,0.0002774,2]
[359325177,1745922646521,-470.0,0.0002774,2]
[359325178,1745922646530,-470.0,0.0002774,2]
[359325179,1745922646539,-470.0,0.0002774,2]
[359325180,1745922646548,-470.0,0.0002774,2]
[359325181,1745922646558,-470.0,0.0002774,2]
[359325182,1745922646567,-470.0,0.0002774,2]
[359325183,1745922646577,-470.0,0.0002774,2]
[359325184,1745922646587,-1088.32,0.0002774,2]
[359325185,1745922646596,-470.0,0.0002774,2]
[359325186,1745922646606,-470.0,0.0002774,2]
[359325187,1745922646615,-470.0,0.0002774,2]
[359325188,1745922646625,-151.0,0.0002774,7]
[359325189,1745922646635,-470.0,0.0002774,2]
[359325190,1745922646645,-470.0,0.0002774,2]
[359325191,1745922646654,-547.95,0.0002774,2]
[359325192,1745922646664,-470.0,0.0002774,2]
[359325193,1745922646674,-470.0,0.0002774,2]
[359325194,1745922646684,-858.15,0.0002774,2]
[359325195,1745922646693,-470.0,0.0002774,2]
[359325196,1745922646703,-470.0,0.0002774,2]
[359325197,1745922646713,-1146.94,0.0002774,2]
[359325198,1745922646723,-470.0,0.0002774,2]
[359325199,1745922646732,-597.23,0.0002774,2]
[359325200,1745922646742,-470.0,0.0002774,2]
[359325201,1745922646751,-470.0,0.0002774,2]
[359325202,1745922646761,-1303.5,0.0002774,2]
[359325203,1745922646770,-470.0,0.0002774,2]
[359325204,1745922646780,-470.0,0.0002774,2]
[359325205,1745922646789,-558.27,0.0002774,2]
[359325206,1745922646799,-918.6,0.0002774,2]
[359325207,1745922646809,-470.0,0.0002774,2]
[359325208,1745922646819,-470.0,0.0002774,2]
[359325209,1745922646829,-480.37,0.0002774,2]
[359325210,1745922646839,-685.03,0.0002774,2]
[359325211,1745922646849,-470.0,0.0002774,2]
[359325212,1745922646858,-470.0,0.0002774,2]
[359325213,1745922646868,-470.0,0.0002774,2]
[359325214,1745922646877,-470.0,0.0002774,2]
[359325215,1745922646887,-498.08,0.0002774,2]
[359325216,1745922646897,-470.0,0.0002774,2]
[359325217,1745922646907,-207.36882828,0.0002774,2]
[359325218,1745922646916,-470.0,0.0002774,2]
[359325219,1745922646926,-838.5,0.0002774,2]
[359325220,1745922646936,-400.0,0.0002774,2]
[359325221,1745922646946,-470.0,0.0002774,2]
[359325222,1745922646955,-470.0,0.0002774,2]
[359325223,1745922646964,-470.0,0.0002774,2]
[359325224,1745922646974,-766.91,0.0002774,2]
[359325225,1745922646983,-470.0,0.0002774,2]
[359325226,1745922646993,-470.0,0.0002774,2]
[359325227,1745922647004,-470.0,0.0002774,2]
[359325228,1745922647013,-470.0,0.0002774,2]
[359325229,1745922647023,-530.29,0.0002774,2]
[359325230,1745922647033,-995.45,0.0002774,2]
[359325231,1745922647043,-550.99,0.0002774,2]
[359325232,1745922647052,-470.0,0.0002774,2]
[359325233,1745922647062,-470.0,0.0002774,2]
[359325234,1745922647072,-499.3493,0.0002774,7]
[359325235,1745922647083,-499.3493,0.0002774,7]
[359325236,1745922647092,-470.0,0.0002774,2]
[359325237,1745922647101,-470.0,0.0002774,2]
[359325238,1745922647111,-470.0,0.0002774,2]
[359325239,1745922647120,-470.0,0.0002774,2]
[359325240,1745922647130,-1530.05,0.0002774,2]
[359325241,1745922647140,-470.0,0.0002774,2]
[359325242,1745922647150,-470.0,0.0002774,2]
[359325243,1745922647162,-808.18,0.0002774,2]
[359325244,1745922647173,-470.0,0.0002774,2]
[359325245,1745922647183,-470.0,0.0002774,2]
[359325246,1745922647192,-151.0,0.0002774,7]
[359325247,1745922647205,-470.0,0.0002774,2]
[359325248,1745922647215,-480.71,0.0002774,2]
[359325249,1745922647225,-470.0,0.0002774,2]
[359325250,1745922647235,-643.44,0.0002774,2]
[359325251,1745922647247,-470.0,0.0002774,2]
[359325252,1745922647257,-470.0,0.0002774,2]
[359325253,1745922647267,-470.0,0.0002774,2]
[359325254,1745922647277,-158.06644379,0.0002774,2]
[359325255,1745922647287,-470.0,0.0002774,2]
[359325256,1745922647298,-470.0,0.0002774,2]
[359325257,1745922647309,-470.0,0.0002774,2]
[359325258,1745922647320,-470.0,0.0002774,2]
[359325259,1745922647331,-470.0,0.0002774,2]
[359325260,1745922647341,-470.0,0.0002774,2]
[359325261,1745922647350,-604.23,0.0002774,2]
[359325262,1745922647359,-470.0,0.0002774,2]
[359325263,1745922647368,-470.0,0.0002774,2]
[359325264,1745922647378,-22064.14,0.0002774,2]
[359325265,1745922647387,-470.0,0.0002774,2]
[359325266,1745922647397,-931.24,0.0002774,2]
[359325267,1745922647406,-470.0,0.0002774,2]
[359325268,1745922647415,-1047.73,0.0002774,2]
[359325269,1745922647425,-470.0,0.0002774,2]
[359325270,1745922647435,-470.0,0.0002774,2]
[359325271,1745922647444,-470.0,0.0002774,2]
[359325272,1745922647453,-1468.5,0.0002774,2]
[359325273,1745922647463,-948.586399,0.0002774,7]
[359325274,1745922647472,-470.0,0.0002774,2]
[359325275,1745922647482,-1024.94,0.0002774,2]
[359325276,1745922647491,-948.586399,0.0002774,7]
[359325277,1745922647500,-3525.01,0.0002774,2]
[359325278,1745922647510,-470.0,0.0002774,2]
[359325279,1745922647519,-300.0,0.0002774,2]
[359325280,1745922647529,-76081.15756238,0.00027741,2]
[359325281,1745922647588,-1854.86712634,0.00027741,2]
[359325282,1745922647603,-527.87485046,0.00027741,2]
[359325283,1745922647680,-455.1272165,0.00027596,2]
[359325284,1745922648358,-14.8727835,0.00027596,2]
[359325285,1745922648368,-7830.52521354,0.00027741,2]
[359325286,1745922649566,-544.32318143,0.00027741,2]
[359325287,1745922649578,-898.41937132,0.00027741,2]
[359325288,1745922649602,-61748.44440325,0.00027741,2]
[359325289,1745922649614,-7112.7420137,0.00027741,2]
[359325290,1745922722270,200.0,0.0002957,117]
[359325291,1745922722331,200.0,0.00027189,117]
[359325292,1745922722408,200.0,0.00027433,117]
[359325293,1745923130767,3040.6187803,0.0003698,60]
[359325294,1745923345739,667.45954138,0.00036986,60]
[359325298,1745923831829,-569.32,0.00024676,2]
[359325299,1745923831839,-849.02188009,0.00025977,2]
[359325300,1745923832038,-629.2309632,0.00025977,2]
[359325301,1745923832050,-307.99715671,0.00025977,2]
[359325302,1745923832059,-1000.0,0.00025977,2]
[359325303,1745923832069,-250.0,0.00026281,2]
[359325304,1745923832079,-156.29,0.00026392,2]
[359325305,1745923832088,-250.0,0.00026434,2]
[359325306,1745923832097,-207.4,0.00026584,2]
[359325307,1745923832107,-126.74127915,0.00026822,4]
[359325399,1745923837873,-352.09372225,0.00026822,4]
[359325400,1745923837883,-323.85,0.00026878,2]
[359325401,1745923837893,-150.0,0.00026878,2]
[359325402,1745923837902,-1549.38549528,0.000269,7]
[359325403,1745923837912,-569.32,0.0002694,2]
[359325404,1745923837922,-500.36683,0.00027,5]
[359325405,1745923837931,-162.05,0.00027078,2]
[359325406,1745923837941,-300.0,0.00027396,2]
[359325407,1745923837952,-135.75884598,0.00027397,2]
[359325408,1745923837963,-134.19355402,0.00027397,2]
[359325409,1745923837974,-323.58644598,0.00027397,2]
[359325612,1745923840076,-3606.13515402,0.00027397,2]
[359325614,1745923840086,-345.75,0.00027397,2]
[359325616,1745923840095,-152.02,0.00027397,2]
[359325617,1745923840105,-1007.0,0.000274,2]
[359325619,1745923840114,-824.235308,0.00027411,2]
[359325621,1745923840123,-61669.6634,0.00027421,2]
[359325623,1745923840133,-218.5261333,0.00027475,2]
[359325625,1745923840142,-6304.8784,0.00027487,2]
[359325627,1745923840151,-5214.7461,0.00027496,2]
[359325629,1745923840160,-14168.913,0.00027496,2]
[359325631,1745923840170,-12479.983,0.00027496,2]
[359325633,1745923840179,-2126.9781,0.00027496,2]
[359325635,1745923840189,-957.66941249,0.00027496,2]
[359325637,1745923840199,-238.71364537,0.00027496,2]
[359325639,1745923840208,-253.19701396,0.00027496,2]
[359325641,1745923840217,-4114.4376,0.00027497,2]
[359325643,1745923840226,-76081.1576,0.00027497,2]
[359325645,1745923840236,-11553.7463,0.00027497,2]
[359325647,1745923840246,-1549.38549514,0.00027555,7]
[359325649,1745923840255,-500.0,0.00027573,5]
[359325651,1745923840264,-184.95,0.00027576,2]
[359325653,1745923840273,-957.66941247,0.00027578,2]
[359325655,1745923840282,-253.19701388,0.00027578,2]
[359325657,1745923840291,-54675.47339971,0.00027586,2]
[359325661,1745923840318,-854.0532287,0.00027586,2]
[359325667,1745923840362,-164.34408416,0.00027397,2]
[359325669,1745923840371,-1335.65591584,0.00027586,2]
[359325677,1745923840440,-1494.50727905,0.00027586,2]
[359325679,1745923840450,-475.49,0.00027594,2]
[359325681,1745923840459,-470.0,0.00027594,2]
[359325683,1745923840468,-470.0,0.00027594,2]
[359325685,1745923840477,-470.0,0.00027594,2]
[359325687,1745923840487,-319.98268695,0.00027594,2]
[359325836,1745923843463,-239.79731305,0.00027594,2]
[359325837,1745923843473,-607.05,0.00027594,2]
[359325838,1745923843481,-381.14007686,0.00027595,2]
[359325839,1745923843515,-88.85992314,0.00027595,2]
[359325840,1745923843524,-470.0,0.00027595,2]
[359325841,1745923843533,-470.0,0.00027595,2]
[359325842,1745923843544,-470.0,0.00027595,2]
[359325843,1745923843554,-515.72,0.00027595,2]
[359325844,1745923843564,-312.83193134,0.00027595,2]
[359325845,1745923843620,-217.20806866,0.00027595,2]
[359325846,1745923843630,-324.33493189,0.00027595,2]
[359325982,1745923846027,-164.34408414,0.0002749,2]
[359325983,1745923846037,-145.66506811,0.00027595,2]
[359325984,1745923846046,-470.0,0.00027595,2]
[359325985,1745923846055,-470.0,0.00027595,2]
[359325986,1745923846065,-470.0,0.00027595,2]
[359325987,1745923846075,-470.0,0.00027595,2]
[359325988,1745923846084,-101.97460775,0.00027595,2]
[359325989,1745923921636,200.0,0.00029504,117]
[359325990,1745924041777,200.0,0.00029243,117]
[359325991,1745924168463,1451.845816,7.945e-05,2]
[359325992,1745924195802,157.92,0.00036986,60]
[359325993,1745924307551,250.0,0.00017,2]
[359325994,1745924308647,300.0,0.00019,2]
[359325998,1745924893159,199.02054066,0.00019209,2]
[359326097,1745925038011,-150.0,0.0002428,2]
[359326098,1745925038022,-150.0,0.000243,2]
[359326099,1745925038031,-139.62846435,0.00024385,2]
[359326297,1745925040308,-10.37153565,0.00024385,2]
[359326299,1745925040317,-150.0,0.00024391,2]
[359326301,1745925040326,-150.0,0.00024442,2]
[359326303,1745925040335,-557.87,0.00024635,2]
[359326305,1745925040345,-150.0,0.00025226,2]
[359326307,1745925040354,-150.0,0.0002524,2]
[359326309,1745925040363,-150.0,0.00025419,2]
[359326311,1745925040372,-150.0,0.00025573,2]
[359326313,1745925040381,-150.0,0.00025623,2]
[359326315,1745925040391,-150.0,0.00025624,2]
[359326317,1745925040400,-150.0,0.00025717,2]
[359326319,1745925040410,-150.0,0.00025945,2]
[359326321,1745925040419,-150.0,0.00026029,2]
[359326323,1745925040428,-207.4,0.0002636,2]
[359326325,1745925040437,-1630.03,0.00026576,2]
[359326327,1745925040446,-291.58851028,0.00026584,2]
[359326328,1745925040455,-192.58448566,0.00026599,2]
[359326331,1745925040466,-763.2034481,0.00026599,4]
[359326333,1745925040475,-250.0,0.00026602,2]
[359326335,1745925040485,-1000.0,0.00026616,2]
[359326337,1745925040494,-200.0,0.00026656,2]
[359326339,1745925040504,-150.0,0.00026687,2]
[359326341,1745925040514,-150.0,0.00026829,2]
[359326343,1745925040524,-150.0,0.00026872,2]
[359326345,1745925040533,-1200.0,0.00026872,2]
[359326347,1745925040543,-557.87,0.00026899,2]
[359326349,1745925040552,-1641.57505937,0.000269,7]
[359326351,1745925040561,-150.0,0.00026937,2]
[359326353,1745925040572,-500.0,0.00027,2]
[359326355,1745925040582,-150.0,0.0002725,2]
[359326357,1745925040591,-150.0,0.00027254,2]
[359326359,1745925040601,-150.0,0.00027345,2]
[359326361,1745925040610,-150.0,0.00027391,2]
[359326363,1745925040620,-328.46,0.00027397,2]
[359326365,1745925040629,-152.02,0.00027397,2]
[359326367,1745925040639,-150.0,0.00027425,2]
[359326369,1745925040649,-150.0,0.00027444,2]
[359326371,1745925040658,-150.0,0.00027444,2]
[359326373,1745925040667,-164.33,0.0002745,2]
[359326375,1745925040676,-150.0,0.00027456,2]
[359326377,1745925040686,-451.32654066,0.00027465,2]
[359326379,1745925040695,-3236.04107168,0.00027465,2]
[359326381,1745925040705,-304.35989781,0.00027475,2]
[359326383,1745925040715,-1424.46357337,0.00027475,2]
[359326385,1745925040724,-306.17641621,0.00027475,2]
[359326387,1745925040733,-190.97091629,0.00027475,2]
[359326389,1745925040742,-389.17914115,0.00027475,2]
[359326391,1745925040752,-352.98094703,0.00027475,2]
[359326393,1745925040762,-1406.9564,0.00027475,2]
[359326395,1745925040771,-1000.0,0.00027475,2]
[359326397,1745925040781,-12130.7314,0.00027475,2]
[359326399,1745925040790,-2500.0,0.00027475,2]
[359326401,1745925040799,-150.0,0.00027483,2]
[359326403,1745925040808,-9801.3664,0.00027485,2]
[359326405,1745925040817,-380.7365,0.00027485,2]
[359326407,1745925040826,-500.0,0.00027495,2]
[359326409,1745925040836,-524.44504459,0.00027495,2]
[359326411,1745925040845,-500.0,0.00027495,2]
[359326413,1745925040854,-252.217496,0.00027495,2]
[359326415,1745925040864,-500.0,0.00027495,2]
[359326417,1745925040874,-500.0,0.00027495,2]
[359326419,1745925040886,-493.81941704,0.00027495,2]
[359326421,1745925040896,-1000.0,0.00027495,2]
[359326423,1745925040907,-2185.4044,0.00027495,2]
[359326425,1745925040916,-2339.3254,0.00027496,2]
[359326428,1745925040927,-500.0,0.00027496,2]
[359326455,1745925041144,-1720.0,0.000275,2]
[359326457,1745925041154,-1641.57505909,0.00027521,7]
[359326459,1745925041164,-451.32654064,0.00027551,2]
[359326461,1745925041173,-150.0,0.00027553,2]
[359326463,1745925041183,-1424.46357337,0.0002756,2]
[359326466,1745925041194,-150.0,0.0002756,2]
[359326468,1745925041203,-470.0,0.00027564,2]
[359326470,1745925041213,-470.0,0.00027564,2]
[359326472,1745925041222,-470.0,0.00027564,2]
[359326474,1745925041231,-470.0,0.00027564,2]
[359326476,1745925041241,-553.42,0.00027564,2]
[359326478,1745925041250,-470.0,0.00027564,2]
[359326480,1745925041260,-470.0,0.00027564,2]
[359326482,1745925041270,-470.0,0.00027564,2]
[359326484,1745925041279,-160.0,0.00027564,2]
[359326486,1745925041289,-470.0,0.00027564,2]
[359326488,1745925041299,-470.0,0.00027564,2]
[359326490,1745925041309,-470.0,0.00027564,2]
[359326492,1745925041318,-476.35,0.00027564,2]
[359326494,1745925041327,-470.0,0.00027564,2]
[359326496,1745925041336,-470.0,0.00027564,2]
[359326498,1745925041345,-470.0,0.00027564,2]
[359326500,1745925041354,-470.0,0.00027564,2]
[359326502,1745925041364,-627.73,0.00027564,2]
[359326504,1745925041373,-200.08039368,0.00027564,2]
[359326505,1745925041382,-205.49315716,0.00027564,2]
[359326507,1745925041392,-183.46585689,0.00027564,2]
[359326509,1745925041402,-194.66039676,0.00027564,2]
[359326512,1745925041411,-206.16243895,0.00027564,2]
[359326514,1745925041420,-483.15395275,0.00027565,2]
[359326516,1745925041429,-2740.06159955,0.00027565,2]
[359326518,1745925041438,-698943.92701059,0.00027565,2]
[359326520,1745925041447,-163686.32810188,0.00027565,2]
[359326769,1745925044134,-153.139737,0.00027565,7]
[359326770,1745925044143,-151.0,0.00027565,7]
[359326772,1745925044153,-7841.87069126,0.00027565,2]
[359326774,1745925044165,-4291.94606349,0.00027565,2]
[359326784,1745925044252,-994.30006284,0.00027565,2]
[359327004,1745925046315,-508.87562221,0.00027564,2]
[359327006,1745925046325,-430.17055784,0.00027565,2]
[359327621,1745925121838,200.0,0.00030212,117]
[359327622,1745925121940,200.0,0.00027514,117]
[359327623,1745925191228,500.0,0.00033452,120]
[359327624,1745925192436,500.0,0.00036201,120]
[359327625,1745925197358,500.0,0.00033452,120]
[359327626,1745925197724,500.0,0.00036201,120]
[359327627,1745925201223,500.0,0.00032592,120]
[359327628,1745925201564,500.0,0.00036201,120]
[359327630,1745925791167,500.0,0.00036818,120]
[359327631,1745925793298,1000.0,0.0003698,60]
[359327632,1745925794296,1000.0,0.0003698,60]
[359327633,1745925795282,1000.0,0.0003698,60]
[359327634,1745925795729,500.0,0.00036818,120]
[359327635,1745925795998,1000.0,0.0003698,60]
[359327636,1745925796773,1000.0,0.0003698,60]
[359327637,1745925798744,500.0,0.00036818,120]
[359327638,1745925909297,-207.35663587,0.0002,2]
[359327639,1745925915979,-169.04,0.0002,2]
[359327640,1745925919115,-294.33578076,0.0002,2]
[359327641,1745925925279,-245.72,0.0002,2]
[359327642,1745925925839,762.04491201,0.000108,2]
[359327643,1745925928353,1599.38191663,0.00011,2]
[359327644,1745925929409,-272.15082242,0.0002,2]
[359327645,1745925933554,-180.60193739,0.0002,2]
[359327646,1745925936327,-629.70037261,0.0002,2]
[359327647,1745925936599,1316.42643881,9e-05,2]
[359327648,1745925940000,-158.36508478,0.0002,2]
[359327649,1745925942677,-758.68871853,0.0002,2]
[359327650,1745925945327,-189.57488143,0.0002,2]
[359327651,1745925951860,-427.93,0.0002,2]
[359327652,1745925955133,1254.38741807,6.94e-05,2]
[359327653,1745925959696,-446.48,0.0001983,2]
[359327654,1745925965284,-478.3184178,0.0001983,2]
[359327655,1745925966927,1064.77354034,8e-05,2]
[359327656,1745925968673,-162.02547363,0.0001983,2]
[359327657,1745925976392,-171.49759904,0.0001983,2]
[359327660,1745926066128,-190.16713292,0.00019731,2]
[359327664,1745926110950,250.0,0.00017,2]
[359327665,1745926112028,300.0,0.00019,2]
[359327683,1745926232288,-1157.1031872,0.00019731,2]
[359327684,1745926232300,-267.59430731,0.00019731,2]
[359327685,1745926232396,-1152.57786449,0.00019731,2]
[359327686,1745926232406,-446.3221355,0.0001983,2]
[359327687,1745926232450,-398.93786984,0.0001983,2]
[359327688,1745926232460,-1899.40427833,0.000199,3]
[359327689,1745926232469,-50963.94846126,0.0002,2]
[359327787,1745926238252,-1555.40956786,0.0002,2]
[359327788,1745926238264,-4907.37294874,0.0002,2]
[359327789,1745926238275,-1532.13672203,0.000232,4]
[359327790,1745926238285,-1532.13672181,0.000232,4]
[359327791,1745926238295,-1532.13672181,0.000232,4]
[359327792,1745926238304,-1532.13672181,0.000232,4]
[359327793,1745926238315,-1532.13672181,0.00023486,4]
[359327794,1745926238324,-1532.13672181,0.00024383,5]
[359327795,1745926238333,-502.08,0.00024621,2]
[359327796,1745926238343,-1532.13672181,0.00025279,5]
[359327797,1745926238353,-1532.13672181,0.00026176,6]
[359327798,1745926238364,-1000.0,0.00026252,2]
[359327799,1745926238374,-207.4,0.0002636,2]
[359327800,1745926238383,-440.73057513,0.000264,2]
[359327801,1745926238395,-250.0,0.00026468,2]
[359327802,1745926238405,-189.25783037,0.00026553,2]
[359327803,1745926238414,-156.29,0.00026568,2]
[359327804,1745926238424,-610.5627584,0.0002659,4]
[359327805,1745926238434,-150.0,0.00026778,2]
[359327806,1745926238444,-154.13,0.00026778,2]
[359327807,1745926238453,-339.5,0.00026778,2]
[359327808,1745926238463,-323.95,0.00026778,2]
[359327809,1745926238472,-300.0,0.00026778,2]
[359327810,1745926238482,-150.0,0.00026778,2]
[359327811,1745926238492,-502.08,0.00026885,2]
[359327812,1745926238501,-1000.0,0.00027,2]